[Event "12th National Schools-ch 2024"]
[Site "Gyan Bhawan Patna"]
[Date "2024.02.09"]
[Round "8.2"]
[White "Advik Amit Agrawal"]
[Black "Oishik Mondal"]
[Result "1/2-1/2"]
[ECO "B22"]
[WhiteElo "1490"]
[BlackElo "1524"]
[Annotator "NA RC"]
[PlyCount "92"]
[EventDate "2024.02.05"]
[EventCountry "IND"]
[SourceTitle "playchess.com"]
[Source "ChessBase"]
[SourceQuality "1"]
[TimeControl "5400+30"]

1. e4 {[%emt 0:00:39]} c5 {[%emt 0:00:14]} 2. c3 {[%emt 0:00:10]} d5 {[%emt 0:00:07]} 3. exd5 {[%emt 0:00:15]} Qxd5 {[%emt 0:00:10]} 4. d4 {[%emt 0:00:15]} Nf6 {[%emt 0:00:07]} 5. Nf3 {[%emt 0:00:16]} Bg4 {[%emt 0:00:07]} 6. Be2 {[%emt 0:00:08]} e6 {[%emt 0:00:08]} 7. O-O {[%emt 0:00:18]} Nc6 {[%emt 0:00:07]} 8. Be3 {[%emt 0:00:18]} cxd4 {[%emt 0:00:07]} 9. cxd4 {[%emt 0:00:19]} Be7 {[%emt 0:00:06]} 10. Nc3 {[%emt 0:00:14]} Qd6 {[%emt 0:00:05]} 11. h3 {[%emt 0:01:12]} Bh5 {[%emt 0:00:10]} 12. a3 {[%emt 0:05:25]} O-O {[%emt 0:01:18]} 13. Qd2 {[%emt 0:04:11]} Rfd8 {[%emt 0:02:35]} 14. Rfd1 {[%emt 0:00:55]} Rac8 {[%emt 0:01:06]} 15. Rac1 {[%emt 0:00:43]} Qd7 {[%emt 0:07:27]} 16. b4 {[%emt 0:00:32]} Bg6 {[%emt 0:04:22]} 17. Qa2 {[%emt 0:02:04]} Ne4 {[%emt 0:08:45]} 18. Bb5 {[%emt 0:06:32]} Nxc3 {[%emt 0:01:37]} 19. Rxc3 {[%emt 0:00:15]} Bf6 {[%emt 0:07:46]} 20. Rc5 {[%emt 0:04:33]} a6 {[%emt 0:03:02]} 21. Ba4 {[%emt 0:00:57]} b6 {[%emt 0:00:47]} 22. Rcc1 {[%emt 0:09:59]} b5 {[%emt 0:00:28]} 23. Bc2 {[%emt 0:10:17]} Bxc2 {[%emt 0:02:12]} 24. Rxc2 {[%emt 0:00:06]} Ne7 {[%emt 0:00:09]} 25. Rdc1 {[%emt 0:17:51]} Nf5 {[%emt 0:01:56]} 26. Rxc8 {[%emt 0:00:18]} Rxc8 {[%emt 0:00:06]} 27. Rxc8+ {[%emt 0:00:25]} Qxc8 {[%emt 0:00:08]} 28. d5 {[%emt 0:00:08]} Nxe3 {[%emt 0:00:54]} 29. fxe3 {[%emt 0:00:06]} Qc4 {[%emt 0:01:28]} 30. Qxc4 {[%emt 0:00:53]} bxc4 {[%emt 0:00:08]} 31. dxe6 {[%emt 0:00:24]} fxe6 {[%emt 0:00:20]} 32. Kf2 {[%emt 0:00:19]} Kf8 {[%emt 0:01:04]} 33. Ke2 {[%emt 0:00:08]} Ke7 {[%emt 0:00:46]} 34. Kd2 {[%emt 0:02:23]} Kd6 {[%emt 0:01:35]} 35. e4 {[%emt 0:00:34]} Bb2 {[%emt 0:02:14]} 36. Kc2 {[%emt 0:00:49]} Bxa3 {[%emt 0:00:32]} 37. Kc3 {[%emt 0:00:04]} e5 {[%emt 0:01:20]} 38. Kxc4 {[%emt 0:00:11]} Bc1 {[%emt 0:53:57]} 39. Ne1 {[%emt 0:00:18]} g6 {[%emt 0:00:00]} 40. Nd3 {[%emt 0:00:11]} Be3 {[%emt 0:00:00]} 41. Nb2 {[%emt 0:01:02]} Bc1 {[%emt 0:00:00]} 42. Na4 {[%emt 0:00:07]} Be3 {[%emt 0:00:00]} 43. Nc3 {[%emt 0:00:06]} Bb6 {[%emt 0:00:00]} 44. Nd5 {[%emt 0:00:07]} Bd8 {[%emt 0:00:00]} 45. Ne3 {[%emt 0:00:29]} Bg5 {[%emt 0:00:00]} 46. Nd5 {[%emt 0:00:11]} Bd8 {[%emt 0:00:00]} 1/2-1/2

[Event "12th National Schools-ch 2024"]
[Site "Gyan Bhawan Patna"]
[Date "2024.02.09"]
[Round "8.3"]
[White "Pavithra R V"]
[Black "Pratitee Bordoloi"]
[Result "0-1"]
[ECO "C50"]
[WhiteElo "1440"]
[BlackElo "1408"]
[Annotator "NA RC"]
[PlyCount "160"]
[EventDate "2024.02.05"]
[EventCountry "IND"]
[SourceTitle "playchess.com"]
[Source "ChessBase"]
[SourceQuality "1"]
[TimeControl "5400+30"]

1. e4 {[%emt 0:00:03]} e5 {[%emt 0:00:07]} 2. Nf3 {[%emt 0:00:04]} Nc6 {[%emt 0:00:06]} 3. Bc4 {[%emt 0:00:06]} Bc5 {[%emt 0:00:08]} 4. Nc3 {[%emt 0:00:05]} Nf6 {[%emt 0:00:10]} 5. d3 {[%emt 0:00:04]} d6 {[%emt 0:00:11]} 6. Bg5 {[%emt 0:00:57]} h6 {[%emt 0:00:11]} 7. Bh4 {[%emt 0:00:05]} g5 {[%emt 0:00:20]} 8. Bg3 {[%emt 0:00:04]} Bg4 {[%emt 0:00:17]} 9. h4 {[%emt 0:10:12]} Rg8 {[%emt 0:10:06]} 10. hxg5 {[%emt 0:04:22]} hxg5 {[%emt 0:01:36]} 11. Na4 {[%emt 0:00:40]} Bb6 {[%emt 0:05:32]} 12. c3 {[%emt 0:02:28]} Nh5 {[%emt 0:07:59]} 13. Qd2 {[%emt 0:06:55]} Qf6 {[%emt 0:09:17]} 14. Nh2 {[%emt 0:06:00]} Bd7 {[%emt 0:02:46]} 15. Bd5 {[%emt 0:14:42]} Nf4 {[%emt 0:06:10]} 16. Bxf4 {[%emt 0:01:01]} gxf4 {[%emt 0:01:50]} 17. Nxb6 {[%emt 0:00:21]} axb6 {[%emt 0:00:50]} 18. f3 {[%emt 0:00:54]} Qg6 {[%emt 0:05:18]} 19. Nf1 {[%emt 0:01:10]} Ke7 {[%emt 0:03:53]} 20. Rh2 {[%emt 0:01:43]} Rh8 {[%emt 0:03:43]} 21. O-O-O {[%emt 0:03:23]} Rxh2 {[%emt 0:02:02]} 22. Nxh2 {[%emt 0:00:04]} Rh8 {[%emt 0:00:14]} 23. Nf1 {[%emt 0:02:56]} Rg8 {[%emt 0:01:26]} 24. Qf2 {[%emt 0:01:54]} Qxg2 {[%emt 0:03:22]} 25. Qh4+ {[%emt 0:00:31]} Qg5 {[%emt 0:00:50]} 26. Qh2 {[%emt 0:00:20]} Rg6 {[%emt 0:05:12]} 27. d4 {[%emt 0:01:08]} Qh6 {[%emt 0:03:07]} 28. Qxh6 {[%emt 0:02:20]} Rxh6 {[%emt 0:00:12]} 29. dxe5 {[%emt 0:00:04]} dxe5 {[%emt 0:00:13]} 30. Bxf7 {[%emt 0:00:21]} Rh3 {[%emt 0:02:38]} 31. Rd3 {[%emt 0:04:20]} Bg4 {[%emt 0:05:42]} 32. Bb3 {[%emt 0:02:09]} Rxf3 {[%emt 0:02:05]} 33. Rxf3 {[%emt 0:03:42]} Bxf3 {[%emt 0:00:05]} 34. Bc2 {[%emt 0:00:10]} Kf6 {[%emt 0:02:54]} 35. Nh2 {[%emt 0:00:18]} Bg2 {[%emt 0:02:11]} 36. Kd2 {[%emt 0:01:22]} Kg5 {[%emt 0:01:50]} 37. Ke2 {[%emt 0:00:54]} Kh4 {[%emt 0:02:26]} 38. Kf2 {[%emt 0:00:11]} Kh3 {[%emt 0:01:32]} 39. Nf3 {[%emt 0:00:14]} Bxf3 {[%emt 0:01:42]} 40. Kxf3 {[%emt 0:00:04]} Na5 {[%emt 0:00:52]} 41. b3 {[%emt 0:00:08]} Kh4 {[%emt 0:00:32]} 42. Bd3 {[%emt 0:00:06]} Kg5 {[%emt 0:00:34]} 43. Bf1 {[%emt 0:00:37]} Kh4 {[%emt 0:00:28]} 44. Bd3 {[%emt 0:00:05]} Nc6 {[%emt 0:01:26]} 45. Bc4 {[%emt 0:00:11]} Kg5 {[%emt 0:00:12]} 46. Bd5 {[%emt 0:00:09]} Nd8 {[%emt 0:00:50]} 47. a4 {[%emt 0:00:21]} c6 {[%emt 0:01:09]} 48. Bc4 {[%emt 0:00:16]} Kf6 {[%emt 0:00:22]} 49. b4 {[%emt 0:34:46]} Ne6 {[%emt 0:01:21]} 50. Bd3 {[%emt 0:00:00]} Ng5+ {[%emt 0:01:59]} 51. Kg4 {[%emt 0:00:00]} Nf7 {[%emt 0:00:49]} 52. Kf3 {[%emt 0:00:00]} Kg5 {[%emt 0:00:46]} 53. Bc4 {[%emt 0:00:00]} Kf6 {[%emt 0:00:08]} 54. Bd3 {[%emt 0:00:00]} Nd6 {[%emt 0:00:07]} 55. Be2 {[%emt 0:00:00]} Kg5 {[%emt 0:00:45]} 56. Bd3 {[%emt 0:00:00]} Kh4 {[%emt 0:00:25]} 57. Bf1 {[%emt 0:00:00]} Nf7 {[%emt 0:00:21]} 58. Bd3 {[%emt 0:00:00]} Ng5+ {[%emt 0:00:08]} 59. Kf2 {[%emt 0:00:00]} Kg4 {[%emt 0:00:30]} 60. Bc2 {[%emt 0:00:00]} Nh3+ {[%emt 0:00:18]} 61. Kg2 {[%emt 0:00:00]} f3+ {[%emt 0:00:08]} 62. Kh2 {[%emt 0:00:00]} Ng5 {[%emt 0:00:07]} 63. Kg1 {[%emt 0:00:00]} Kf4 {[%emt 0:00:05]} 64. Kf2 {[%emt 0:00:00]} Nxe4+ {[%emt 0:00:07]} 65. Bxe4 {[%emt 0:00:00]} Kxe4 {[%emt 0:00:07]} 66. c4 {[%emt 0:00:00]} Kd3 {[%emt 0:00:20]} 67. Kxf3 {[%emt 0:00:00]} e4+ {[%emt 0:00:10]} 68. Kf2 {[%emt 0:00:00]} Kd2 {[%emt 0:00:11]} 69. b5 {[%emt 0:00:00]} e3+ {[%emt 0:00:13]} 70. Kf3 {[%emt 0:00:00]} e2 {[%emt 0:00:11]} 71. c5 {[%emt 0:00:00]} e1=Q {[%emt 0:00:26]} 72. cxb6 {[%emt 0:00:00]} Qe3+ {[%emt 0:00:07]} 73. Kg2 {[%emt 0:00:00]} Qxb6 {[%emt 0:00:09]} 74. bxc6 {[%emt 0:00:00]} Qxc6+ {[%emt 0:00:06]} 75. Kf2 {[%emt 0:00:00]} Qf6+ {[%emt 0:00:04]} 76. Kg1 {[%emt 0:00:00]} Qf3 {[%emt 0:00:09]} 77. Kh2 {[%emt 0:00:00]} Qg4 {[%emt 0:00:04]} 78. Kh1 {[%emt 0:00:00]} Ke3 {[%emt 0:00:05]} 79. Kh2 {[%emt 0:00:00]} Kf2 {[%emt 0:00:06]} 80. Kh1 {[%emt 0:00:00]} Qh3# {[%emt 0:00:05]} 0-1

[Event "12th National Schools-ch 2024"]
[Site "Gyan Bhawan Patna"]
[Date "2024.02.09"]
[Round "8.4"]
[White "Vedant Yogesh Kale"]
[Black "Andalamala Hemal Varshan"]
[Result "1/2-1/2"]
[ECO "B27"]
[WhiteElo "1218"]
[BlackElo "1578"]
[Annotator "NA RC"]
[PlyCount "99"]
[EventDate "2024.02.05"]
[EventCountry "IND"]
[SourceTitle "playchess.com"]
[Source "ChessBase"]
[SourceQuality "1"]
[TimeControl "5400+30"]

1. e4 {[%emt 0:00:04]} c5 {[%emt 0:00:05]} 2. Nf3 {[%emt 0:00:09]} g6 {[%emt 0:00:05]} 3. d4 {[%emt 0:00:06]} cxd4 {[%emt 0:00:05]} 4. Qxd4 {[%emt 0:00:09]} Nf6 {[%emt 0:00:09]} 5. Nc3 {[%emt 0:00:05]} Nc6 {[%emt 1:32:36]} 6. Qa4 {[%emt 0:00:06]} d6 {[%emt 0:00:00]} 7. e5 {[%emt 0:00:05]} dxe5 {[%emt 0:00:00]} 8. Nxe5 {[%emt 0:00:10]} Bd7 {[%emt 0:00:00]} 9. Nxd7 {[%emt 0:00:06]} Qxd7 {[%emt 0:00:00]} 10. Be3 {[%emt 0:00:06]} Bg7 {[%emt 0:00:00]} 11. Rd1 {[%emt 0:00:06]} Qc8 {[%emt 0:00:00]} 12. Be2 {[%emt 0:00:05]} O-O {[%emt 0:00:00]} 13. O-O {[%emt 0:00:04]} a6 {[%emt 0:00:00]} 14. Qb3 {[%emt 0:00:10]} Nd7 {[%emt 0:00:00]} 15. f4 {[%emt 0:08:26]} e6 {[%emt 0:00:00]} 16. Ne4 {[%emt 0:03:52]} b5 {[%emt 0:00:00]} 17. c3 {[%emt 0:02:18]} Qc7 {[%emt 0:00:00]} 18. Rd2 {[%emt 0:02:21]} Nb6 {[%emt 0:00:00]} 19. g3 {[%emt 0:07:08]} Na5 {[%emt 0:00:00]} 20. Qb4 {[%emt 0:08:02]} Nac4 {[%emt 0:00:00]} 21. Bxc4 {[%emt 0:00:51]} Nxc4 {[%emt 0:00:00]} 22. Rd3 {[%emt 0:02:18]} Qc6 {[%emt 0:00:00]} 23. Nd2 {[%emt 0:03:48]} Nxe3 {[%emt 0:00:00]} 24. Rxe3 {[%emt 0:01:09]} Rfd8 {[%emt 0:00:00]} 25. Nf3 {[%emt 0:07:53]} Qb6 {[%emt 0:00:00]} 26. Qe4 {[%emt 0:02:54]} Rac8 {[%emt 0:00:00]} 27. Rfe1 {[%emt 0:11:14]} Rc4 {[%emt 0:00:00]} 28. Qb1 {[%emt 0:00:24]} b4 {[%emt 0:00:00]} 29. cxb4 {[%emt 0:01:26]} Rxb4 {[%emt 0:00:00]} 30. b3 {[%emt 0:00:37]} Bc3 {[%emt 0:00:00]} 31. R1e2 {[%emt 0:00:29]} Bd4 {[%emt 0:00:00]} 32. Nxd4 {[%emt 0:00:22]} Rbxd4 {[%emt 0:00:00]} 33. Kg2 {[%emt 0:01:24]} Qc6+ {[%emt 0:00:00]} 34. Kf2 {[%emt 0:01:27]} Qc5 {[%emt 0:00:00]} 35. Qc2 {[%emt 0:01:17]} Qh5 {[%emt 0:00:00]} 36. Kg2 {[%emt 0:00:58]} Qd5+ {[%emt 0:00:00]} 37. Rf3 {[%emt 0:01:47]} Rd3 {[%emt 0:00:00]} 38. Ref2 {[%emt 0:00:05]} h5 {[%emt 0:00:00]} 39. h4 {[%emt 0:01:58]} Qb7 {[%emt 0:00:00]} 40. Qe2 {[%emt 0:05:52]} Rd1 {[%emt 0:00:00]} 41. Kh2 {[%emt 0:10:53]} R8d3 {[%emt 0:02:04]} 42. Qxd3 {[%emt 0:00:32]} Rxd3 {[%emt 0:00:37]} 43. Rxd3 {[%emt 0:00:04]} Kg7 {[%emt 0:00:28]} 44. Re3 {[%emt 0:01:18]} Qb6 {[%emt 0:00:18]} 45. Rfe2 {[%emt 0:00:24]} Kf6 {[%emt 0:00:07]} 46. Re5 {[%emt 0:02:07]} Qc6 {[%emt 0:00:23]} 47. R2e3 {[%emt 0:01:11]} Qc2+ {[%emt 0:00:14]} 48. Re2 {[%emt 0:00:05]} Qc6 {[%emt 0:00:10]} 49. R2e3 {[%emt 0:00:10]} Qc2+ {[%emt 0:00:30]} 50. Re2 {[%emt 0:00:03]} 1/2-1/2

[Event "12th National Schools-ch 2024"]
[Site "Gyan Bhawan Patna"]
[Date "2024.02.09"]
[Round "8.5"]
[White "Nivedita V C"]
[Black "Sravyasree Bheemarasetty"]
[Result "1/2-1/2"]
[ECO "E69"]
[WhiteElo "1609"]
[BlackElo "1485"]
[Annotator "NA RC"]
[PlyCount "73"]
[EventDate "2024.02.05"]
[EventCountry "IND"]
[SourceTitle "playchess.com"]
[Source "ChessBase"]
[SourceQuality "1"]
[TimeControl "5400+30"]

1. d4 {[%emt 0:00:03]} Nf6 {[%emt 0:00:10]} 2. c4 {[%emt 0:00:03]} g6 {[%emt 0:00:18]} 3. Nc3 {[%emt 0:00:05]} Bg7 {[%emt 0:00:19]} 4. e4 {[%emt 0:00:03]} d6 {[%emt 0:00:20]} 5. h3 {[%emt 0:00:04]} O-O {[%emt 0:00:16]} 6. Be3 {[%emt 0:00:01]} c6 {[%emt 0:00:29]} 7. Nf3 {[%emt 0:11:20]} Nbd7 {[%emt 0:00:24]} 8. g3 {[%emt 0:00:40]} e5 {[%emt 0:00:45]} 9. Bg2 {[%emt 0:00:23]} Qc7 {[%emt 0:02:14]} 10. O-O {[%emt 0:03:16]} Ne8 {[%emt 0:01:32]} 11. g4 {[%emt 0:13:10]} exd4 {[%emt 0:12:20]} 12. Nxd4 {[%emt 0:00:57]} Ne5 {[%emt 0:00:41]} 13. Qe2 {[%emt 0:01:23]} Be6 {[%emt 0:03:00]} 14. Nxe6 {[%emt 0:05:04]} fxe6 {[%emt 0:00:46]} 15. f4 {[%emt 0:00:39]} Nd7 {[%emt 0:00:21]} 16. g5 {[%emt 0:01:29]} Bxc3 {[%emt 0:05:56]} 17. bxc3 {[%emt 0:00:06]} Ng7 {[%emt 0:00:06]} 18. Rad1 {[%emt 0:02:53]} Nb6 {[%emt 0:07:44]} 19. Qd3 {[%emt 0:17:41]} Rad8 {[%emt 0:01:55]} 20. Bd4 {[%emt 0:08:02]} e5 {[%emt 0:05:09]} 21. fxe5 {[%emt 0:01:18]} Rxf1+ {[%emt 0:01:55]} 22. Qxf1 {[%emt 0:00:48]} dxe5 {[%emt 0:04:00]} 23. Bxe5 {[%emt 0:03:03]} Rxd1 {[%emt 0:00:04]} 24. Bxc7 {[%emt 0:00:08]} Rxf1+ {[%emt 0:00:03]} 25. Bxf1 {[%emt 0:00:06]} Ne6 {[%emt 0:00:10]} 26. Bd6 {[%emt 0:01:42]} Nxg5 {[%emt 0:05:11]} 27. c5 {[%emt 0:02:28]} Nd7 {[%emt 0:00:45]} 28. Bd3 {[%emt 0:09:15]} Kg7 {[%emt 0:04:19]} 29. Kf2 {[%emt 0:08:09]} Kf6 {[%emt 0:06:49]} 30. h4 {[%emt 0:03:01]} Ne6 {[%emt 0:00:57]} 31. Ke3 {[%emt 0:01:27]} Nexc5 {[%emt 0:05:44]} 32. e5+ {[%emt 0:00:42]} Ke6 {[%emt 0:00:44]} 33. Bc4+ {[%emt 0:07:31]} Kf5 {[%emt 0:00:16]} 34. Bf1 {[%emt 0:00:00]} Kg4 {[%emt 0:09:38]} 35. Bc4 {[%emt 0:00:00]} b5 {[%emt 0:22:40]} 36. Bg8 {[%emt 0:01:30]} Kf5 {[%emt 0:00:30]} 37. Bxh7 {[%emt 0:00:30]} 1/2-1/2

[Event "12th National Schools-ch 2024"]
[Site "Gyan Bhawan Patna"]
[Date "2024.02.09"]
[Round "8.6"]
[White "Yuvanesh A"]
[Black "Pratiyush Kumar"]
[Result "1-0"]
[ECO "D13"]
[WhiteElo "1377"]
[BlackElo "1287"]
[Annotator "NA RC"]
[PlyCount "86"]
[EventDate "2024.02.05"]
[EventCountry "IND"]
[SourceTitle "playchess.com"]
[Source "ChessBase"]
[SourceQuality "1"]
[TimeControl "5400+30"]

1. d4 {[%emt 0:00:04]} d5 {[%emt 0:01:03]} 2. c4 {[%emt 0:00:11]} c6 {[%emt 0:00:54]} 3. cxd5 {[%emt 1:31:45]} cxd5 {[%emt 0:00:08]} 4. Nc3 {[%emt 0:00:00]} Nf6 {[%emt 0:00:10]} 5. Nf3 {[%emt 0:00:00]} e6 {[%emt 0:00:40]} 6. Bf4 {[%emt 0:00:00]} a6 {[%emt 0:02:32]} 7. e3 {[%emt 0:00:00]} Nc6 {[%emt 0:00:22]} 8. Bd3 {[%emt 0:00:00]} h6 {[%emt 0:00:28]} 9. O-O {[%emt 0:00:00]} Bd6 {[%emt 0:01:40]} 10. Bg3 {[%emt 0:00:00]} O-O {[%emt 0:00:06]} 11. Rc1 {[%emt 0:00:00]} Re8 {[%emt 0:00:54]} 12. e4 {[%emt 0:00:00]} Bxg3 {[%emt 0:05:37]} 13. hxg3 {[%emt 0:00:00]} dxe4 {[%emt 0:00:40]} 14. Nxe4 {[%emt 0:00:00]} Nd5 {[%emt 0:02:42]} 15. a3 {[%emt 0:00:00]} Nce7 {[%emt 0:10:26]} 16. Re1 {[%emt 0:00:00]} b6 {[%emt 0:01:02]} 17. Bb1 {[%emt 0:00:00]} Bb7 {[%emt 0:01:30]} 18. Ne5 {[%emt 0:00:00]} Nc8 {[%emt 0:08:58]} 19. Qc2 {[%emt 0:00:00]} f5 {[%emt 0:07:26]} 20. Nc3 {[%emt 0:00:00]} Nce7 {[%emt 0:00:48]} 21. Ba2 {[%emt 0:00:00]} Kh7 {[%emt 0:10:26]} 22. Qe2 {[%emt 0:00:00]} Ng6 {[%emt 0:04:08]} 23. Nf7 {[%emt 0:00:00]} Qf6 {[%emt 0:05:43]} 24. Nd6 {[%emt 0:00:00]} Ndf4 {[%emt 0:04:39]} 25. gxf4 {[%emt 0:00:00]} Nxf4 {[%emt 0:00:10]} 26. Qe3 {[%emt 0:00:00]} Nxg2 {[%emt 0:02:18]} 27. Nxe8 {[%emt 0:00:00]} Rxe8 {[%emt 0:01:12]} 28. Qe5 {[%emt 0:00:00]} Qg5 {[%emt 0:11:06]} 29. Qg3 {[%emt 0:00:00]} Qh5 {[%emt 0:04:43]} 30. d5 {[%emt 0:00:00]} Nh4 {[%emt 0:01:06]} 31. f3 {[%emt 0:00:00]} f4 {[%emt 0:01:14]} 32. Bb1+ {[%emt 0:00:00]} Kg8 {[%emt 0:00:36]} 33. Qxf4 {[%emt 0:00:00]} Rf8 {[%emt 0:00:49]} 34. Bh7+ {[%emt 0:00:00]} Kxh7 {[%emt 0:00:06]} 35. Qxf8 {[%emt 0:00:00]} Qg5+ {[%emt 0:01:43]} 36. Kf2 {[%emt 0:00:00]} Qg2+ {[%emt 0:01:06]} 37. Ke3 {[%emt 0:00:00]} Nf5+ {[%emt 0:00:12]} 38. Ke4 {[%emt 0:00:00]} Qd2 {[%emt 0:03:20]} 39. Ke5 {[%emt 0:00:00]} Bxd5 {[%emt 0:07:17]} 40. Qxf5+ {[%emt 0:00:00]} exf5 {[%emt 0:00:30]} 41. Nxd5 {[%emt 0:00:00]} Qxb2+ {[%emt 0:00:00]} 42. Kxf5 {[%emt 0:00:00]} Qxa3 {[%emt 0:00:00]} 43. Ke4 {[%emt 0:20:00]} Qb2 {[%emt 0:01:30]} 1-0

[Event "12th National Schools-ch 2024"]
[Site "Gyan Bhawan Patna"]
[Date "2024.02.09"]
[Round "8.7"]
[White "Aadya Gupta"]
[Black "Theephigaa K P"]
[Result "1/2-1/2"]
[ECO "D37"]
[WhiteElo "1544"]
[BlackElo "1349"]
[Annotator "NA RC"]
[PlyCount "62"]
[EventDate "2024.02.05"]
[EventCountry "IND"]
[SourceTitle "playchess.com"]
[Source "ChessBase"]
[SourceQuality "1"]
[TimeControl "5400+30"]

1. d4 {[%emt 0:00:01]} d5 {[%emt 0:02:48]} 2. c4 {[%emt 0:00:01]} e6 {[%emt 0:00:08]} 3. Nc3 {[%emt 0:00:04]} Be7 {[%emt 0:00:28]} 4. Nf3 {[%emt 0:00:28]} Nf6 {[%emt 0:00:37]} 5. Bf4 {[%emt 0:00:04]} O-O {[%emt 0:05:11]} 6. a3 {[%emt 0:00:31]} b6 {[%emt 0:16:24]} 7. e3 {[%emt 0:00:15]} Bb7 {[%emt 0:00:16]} 8. Bd3 {[%emt 0:00:48]} dxc4 {[%emt 0:02:01]} 9. Bxc4 {[%emt 0:00:02]} c5 {[%emt 0:02:33]} 10. O-O {[%emt 0:03:37]} Nc6 {[%emt 0:08:49]} 11. Qe2 {[%emt 0:18:45]} cxd4 {[%emt 0:24:50]} 12. Rfd1 {[%emt 0:01:48]} Bd6 {[%emt 0:09:29]} 13. Bxd6 {[%emt 0:11:59]} Qxd6 {[%emt 0:00:03]} 14. Nb5 {[%emt 0:04:03]} Qe7 {[%emt 0:04:59]} 15. Nbxd4 {[%emt 0:00:41]} Nxd4 {[%emt 0:00:56]} 16. Nxd4 {[%emt 0:01:30]} Rfd8 {[%emt 0:03:50]} 17. Ba6 {[%emt 0:02:39]} Rd5 {[%emt 0:08:13]} 18. Bxb7 {[%emt 0:01:07]} Qxb7 {[%emt 0:00:18]} 19. Nf3 {[%emt 0:05:35]} Rad8 {[%emt 0:00:50]} 20. Rac1 {[%emt 0:01:56]} Rxd1+ {[%emt 0:02:53]} 21. Rxd1 {[%emt 0:00:04]} Rxd1+ {[%emt 0:01:22]} 22. Qxd1 {[%emt 0:00:01]} Qd5 {[%emt 0:01:06]} 23. Qxd5 {[%emt 0:00:26]} Nxd5 {[%emt 0:00:04]} 24. Kf1 {[%emt 0:00:27]} Kf8 {[%emt 0:00:18]} 25. Nd4 {[%emt 0:00:25]} Ke8 {[%emt 0:01:48]} 26. Ke2 {[%emt 0:00:51]} Kd7 {[%emt 0:00:31]} 27. Kd3 {[%emt 0:00:21]} Ne7 {[%emt 0:01:26]} 28. b4 {[%emt 0:02:02]} Nc6 {[%emt 0:00:18]} 29. Nxc6 {[%emt 0:01:04]} Kxc6 {[%emt 0:00:02]} 30. Kc4 {[%emt 0:00:34]} b5+ {[%emt 0:00:18]} 31. Kd4 {[%emt 0:00:16]} Kd6 {[%emt 0:00:12]} 1/2-1/2

[Event "12th National Schools-ch 2024"]
[Site "Gyan Bhawan Patna"]
[Date "2024.02.09"]
[Round "8.8"]
[White "Devnath Bijesh"]
[Black "Arnav Agrawal"]
[Result "1/2-1/2"]
[ECO "B90"]
[WhiteElo "1499"]
[BlackElo "1610"]
[Annotator "NA RC"]
[PlyCount "74"]
[EventDate "2024.02.05"]
[EventCountry "IND"]
[SourceTitle "playchess.com"]
[Source "ChessBase"]
[SourceQuality "1"]
[TimeControl "5400+30"]

1. e4 {[%emt 0:00:02]} c5 {[%emt 0:00:07]} 2. Nf3 {[%emt 0:00:06]} d6 {[%emt 0:00:04]} 3. d4 {[%emt 0:00:04]} cxd4 {[%emt 0:00:05]} 4. Nxd4 {[%emt 0:00:05]} Nf6 {[%emt 0:00:06]} 5. Nc3 {[%emt 0:00:04]} a6 {[%emt 0:00:05]} 6. Be3 {[%emt 0:00:07]} e5 {[%emt 0:00:13]} 7. Nb3 {[%emt 0:00:06]} Be7 {[%emt 0:00:05]} 8. f3 {[%emt 0:00:04]} Be6 {[%emt 0:00:06]} 9. Qd2 {[%emt 0:00:19]} h5 {[%emt 0:00:07]} 10. O-O-O {[%emt 0:00:24]} Nbd7 {[%emt 0:00:11]} 11. Kb1 {[%emt 0:00:53]} Rc8 {[%emt 0:00:31]} 12. Nd5 {[%emt 0:00:47]} Nxd5 {[%emt 0:00:17]} 13. exd5 {[%emt 0:00:07]} Bf5 {[%emt 0:00:06]} 14. Bd3 {[%emt 0:00:45]} Bxd3 {[%emt 0:00:08]} 15. Qxd3 {[%emt 0:00:10]} Bg5 {[%emt 0:00:06]} 16. Bf2 {[%emt 0:07:59]} Qc7 {[%emt 0:01:32]} 17. h4 {[%emt 0:01:20]} Bf4 {[%emt 0:01:16]} 18. g3 {[%emt 0:05:10]} Bh6 {[%emt 0:00:07]} 19. g4 {[%emt 0:02:06]} hxg4 {[%emt 0:00:06]} 20. fxg4 {[%emt 0:00:08]} Bf4 {[%emt 0:00:05]} 21. g5 {[%emt 0:01:52]} Qc4 {[%emt 0:15:43]} 22. Qxc4 {[%emt 0:08:30]} Rxc4 {[%emt 0:00:10]} 23. Rhe1 {[%emt 0:00:10]} b6 {[%emt 0:13:23]} 24. Rd4 {[%emt 0:04:14]} Rxd4 {[%emt 0:01:03]} 25. Nxd4 {[%emt 0:00:17]} g6 {[%emt 0:00:20]} 26. Ne2 {[%emt 0:01:31]} Bd2 {[%emt 0:01:14]} 27. Rd1 {[%emt 0:03:06]} Bb4 {[%emt 0:01:53]} 28. a3 {[%emt 0:01:42]} Bc5 {[%emt 0:00:09]} 29. Bg3 {[%emt 0:00:06]} b5 {[%emt 0:01:22]} 30. Nc3 {[%emt 0:01:30]} f5 {[%emt 0:02:05]} 31. gxf6 {[%emt 0:00:20]} Nxf6 {[%emt 0:00:06]} 32. Rf1 {[%emt 0:02:12]} Ke7 {[%emt 0:00:18]} 33. Be1 {[%emt 0:00:28]} Bd4 {[%emt 0:02:12]} 34. Bd2 {[%emt 0:00:13]} Nh7 {[%emt 0:08:11]} 35. Ne4 {[%emt 0:08:41]} Bb6 {[%emt 0:02:56]} 36. Bh6 {[%emt 0:03:33]} Rc8 {[%emt 0:52:02]} 37. b3 {[%emt 0:49:49]} Bd4 {[%emt 0:00:30]} 1/2-1/2

[Event "12th National Schools-ch 2024"]
[Site "Gyan Bhawan Patna"]
[Date "2024.02.09"]
[Round "8.9"]
[White "Sindhusree K"]
[Black "Disha U A"]
[Result "1/2-1/2"]
[ECO "D55"]
[WhiteElo "1445"]
[BlackElo "1377"]
[Annotator "NA RC"]
[PlyCount "78"]
[EventDate "2024.02.05"]
[EventCountry "IND"]
[SourceTitle "playchess.com"]
[Source "ChessBase"]
[SourceQuality "1"]
[TimeControl "5400+30"]

1. d4 {[%emt 0:00:10]} d5 {[%emt 0:02:31]} 2. c4 {[%emt 0:00:07]} e6 {[%emt 0:00:12]} 3. Nf3 {[%emt 0:00:05]} Nf6 {[%emt 0:00:11]} 4. Nc3 {[%emt 0:00:05]} Be7 {[%emt 1:29:36]} 5. Bg5 {[%emt 0:00:09]} O-O {[%emt 0:00:00]} 6. Qc2 {[%emt 0:00:09]} b6 {[%emt 0:00:00]} 7. cxd5 {[%emt 0:00:34]} exd5 {[%emt 0:00:00]} 8. e3 {[%emt 0:00:08]} Bb7 {[%emt 0:00:00]} 9. Bd3 {[%emt 0:00:07]} Nbd7 {[%emt 0:00:00]} 10. O-O {[%emt 0:00:07]} h6 {[%emt 0:00:00]} 11. Bh4 {[%emt 0:00:04]} Re8 {[%emt 0:00:00]} 12. Rad1 {[%emt 0:01:40]} a6 {[%emt 0:00:00]} 13. Rfe1 {[%emt 0:11:02]} b5 {[%emt 0:00:00]} 14. a3 {[%emt 0:00:20]} Nb6 {[%emt 0:00:00]} 15. Ne5 {[%emt 0:07:13]} Nc4 {[%emt 0:00:00]} 16. f4 {[%emt 0:16:41]} Nd6 {[%emt 0:00:00]} 17. Rc1 {[%emt 0:02:11]} Rc8 {[%emt 0:00:00]} 18. Na2 {[%emt 0:06:48]} c6 {[%emt 0:00:00]} 19. Nb4 {[%emt 0:06:00]} Nc4 {[%emt 0:00:00]} 20. Bf5 {[%emt 0:00:48]} Rc7 {[%emt 0:00:00]} 21. Nbd3 {[%emt 0:01:02]} Ne4 {[%emt 0:00:00]} 22. Bxe7 {[%emt 0:02:25]} Qxe7 {[%emt 0:00:00]} 23. Bxe4 {[%emt 0:00:23]} dxe4 {[%emt 0:00:00]} 24. Nc5 {[%emt 0:01:50]} Nd6 {[%emt 0:00:00]} 25. Qb1 {[%emt 0:07:21]} Bc8 {[%emt 0:00:00]} 26. Nb3 {[%emt 0:01:13]} Bb7 {[%emt 0:00:00]} 27. Na5 {[%emt 0:05:36]} Rec8 {[%emt 0:00:00]} 28. Rc5 {[%emt 0:01:06]} f6 {[%emt 0:00:00]} 29. Ng4 {[%emt 0:00:04]} Nc4 {[%emt 0:00:00]} 30. Nxc4 {[%emt 0:00:56]} bxc4 {[%emt 0:00:00]} 31. Rc1 {[%emt 0:00:42]} Rb8 {[%emt 0:00:00]} 32. R1xc4 {[%emt 0:00:31]} Bc8 {[%emt 0:00:00]} 33. Nf2 {[%emt 0:00:16]} Be6 {[%emt 0:00:00]} 34. Rc3 {[%emt 0:07:48]} Bd5 {[%emt 0:00:13]} 35. Qc2 {[%emt 0:01:01]} Rcb7 {[%emt 0:00:17]} 36. b4 {[%emt 0:00:07]} f5 {[%emt 0:00:54]} 37. Nd1 {[%emt 0:01:07]} Qh4 {[%emt 0:00:45]} 38. Qf2 {[%emt 0:01:20]} Qg4 {[%emt 0:00:24]} 39. Nb2 {[%emt 0:00:12]} Rb5 {[%emt 0:02:17]} 1/2-1/2